bitfinex/quotes_BTCUSD_20260117
["timestamp","ask_amount","ask_price","bid_price","bid_amount"]
[1768686130330,0.11692519,95273.0,95269.0,0.01049659]
[1768686130945,0.05394794,95273.0,95270.0,0.06297885]
[1768686131154,0.05394794,95273.0,95270.0,0.06297883]
[1768686131502,0.05394794,95273.0,95270.0,0.01049648]
[1768686132647,0.05394794,95273.0,95270.0,0.06297888]
[1768686132813,0.05394794,95273.0,95271.0,0.05248185]
[1768686133545,0.05394794,95273.0,95270.0,0.06297883]
[1768686135415,0.05394794,95273.0,95270.0,0.01049648]
[1768686135613,0.05394794,95273.0,95271.0,0.05248186]
[1768686136647,0.05394794,95273.0,95270.0,0.01049648]
[1768686137403,0.05394794,95273.0,95271.0,0.05248136]
[1768686137820,0.05394794,95273.0,95271.0,0.05228711]
[1768686139663,0.05394794,95273.0,95272.0,0.05248131]
[1768686140533,0.05394794,95273.0,95272.0,0.05228712]
[1768686140952,0.05394794,95273.0,95272.0,0.05209294]
[1768686141166,0.05394794,95273.0,95272.0,0.05189878]
[1768686141380,0.1272,95275.0,95274.0,0.05248021]
[1768686142480,0.1272,95275.0,95271.0,0.0629777]
[1768686142678,0.1272,95275.0,95272.0,0.05248128]
[1768686143757,0.1272,95275.0,95272.0,0.01049626]
[1768686143983,0.13769593,95275.0,95272.0,0.01049626]
[1768686147212,0.1272,95275.0,95272.0,0.01049626]
[1768686150272,0.1272,95275.0,95272.0,0.06297754]
[1768686150875,0.1272,95275.0,95273.0,0.05248055]
[1768686151521,0.1272,95275.0,95272.0,0.06297658]
[1768686151961,0.1272,95275.0,95274.0,0.05248021]
[1768686156009,0.1272,95275.0,95272.0,0.01049626]
[1768686156621,0.1272,95275.0,95272.0,0.06297754]
[1768686157026,0.1272,95275.0,95272.0,0.01049626]
[1768686157843,0.13769593,95275.0,95271.0,0.01049637]
[1768686158043,0.1272,95275.0,95272.0,0.01049626]
[1768686159126,0.1272,95275.0,95274.0,0.05248021]
[1768686159547,0.1272,95275.0,95274.0,0.05230662]
[1768686159956,0.1272,95275.0,95272.0,0.06297712]
[1768686162379,0.1272,95275.0,95273.0,0.05248068]
[1768686162593,0.01049604,95274.0,95268.0,0.0104967]
[1768686162850,0.01049604,95274.0,95269.0,0.05248296]
[1768686164248,0.01049604,95274.0,95270.0,0.01049648]
[1768686164571,0.01049604,95274.0,95270.0,0.06297872]
[1768686167249,0.01049604,95274.0,95271.0,0.01049637]
[1768686167698,0.01049604,95274.0,95271.0,0.01030237]
[1768686168326,0.01049604,95274.0,95271.0,0.01010839]
[1768686168959,0.01049604,95274.0,95271.0,0.00991441]
[1768686169765,0.01049604,95274.0,95271.0,0.00972044]
[1768686171320,0.01049626,95272.0,95267.0,0.01049681]
[1768686171524,0.01049626,95272.0,95267.0,0.06298041]
[1768686171774,0.01049626,95272.0,95269.0,0.01049659]
[1768686171981,0.01049615,95273.0,95269.0,0.01049659]
[1768686174545,0.01049615,95273.0,95269.0,0.06297951]
[1768686175029,0.01049615,95273.0,95269.0,0.06278561]
[1768686176995,0.01049615,95273.0,95269.0,0.06259171]
[1768686177198,0.01049615,95273.0,95270.0,0.01049648]
[1768686177515,0.01049615,95273.0,95270.0,0.01030258]
[1768686179095,0.01049604,95274.0,95270.0,0.01030258]
[1768686179299,0.01049604,95274.0,95271.0,0.01049637]
[1768686180054,0.01054327,95274.0,95271.0,0.01049637]
[1768686180639,0.01049615,95273.0,95268.0,0.0104967]
[1768686180840,0.06297823,95271.0,95267.0,0.01049681]
[1768686180978,0.01049637,95271.0,95267.0,0.01049681]
[1768686181602,0.01049659,95269.0,95265.0,0.01049703]
[1768686182015,0.01049659,95269.0,95266.0,0.01049692]
[1768686182219,0.01049659,95269.0,95266.0,0.01030309]
[1768686182755,0.01049637,95271.0,95267.0,0.01049681]
[1768686182909,0.06297889,95270.0,95266.0,0.01030309]
[1768686183353,0.01049648,95270.0,95266.0,0.01030309]
[1768686183718,0.01049648,95270.0,95267.0,0.01049681]
[1768686184082,0.01049648,95270.0,95266.0,0.01030309]
[1768686185128,0.06297895,95270.0,95266.0,0.01030309]
[1768686185347,0.01049648,95270.0,95266.0,0.01030309]
[1768686185548,0.01049648,95270.0,95266.0,0.06259383]
[1768686186175,0.01049648,95270.0,95267.0,0.01049681]
[1768686186688,0.01049637,95271.0,95267.0,0.01049681]
[1768686187133,0.01049637,95271.0,95268.0,0.0104967]
[1768686188429,0.06297846,95271.0,95267.0,0.01049681]
[1768686189014,0.01049637,95271.0,95267.0,0.01049681]
[1768686190381,0.01049648,95270.0,95267.0,0.01049681]
[1768686191631,0.01049637,95271.0,95267.0,0.01049681]
[1768686191911,0.01049626,95272.0,95268.0,0.0104967]
[1768686194132,0.01049626,95272.0,95268.0,0.06298012]
[1768686194282,0.01049626,95272.0,95268.0,0.0104967]
[1768686194882,0.06297768,95272.0,95268.0,0.0104967]
[1768686197196,0.01049626,95272.0,95268.0,0.0104967]
[1768686198829,0.01049626,95272.0,95268.0,0.01030284]
[1768686199345,0.01049626,95272.0,95268.0,0.0627863]
[1768686200495,0.01049626,95272.0,95268.0,0.01030284]
[1768686200958,0.01049626,95272.0,95268.0,0.06278621]
[1768686201988,0.01049626,95272.0,95270.0,0.03778897]
[1768686202831,4.723e-05,95274.0,95270.0,0.04828545]
[1768686203465,4.723e-05,95274.0,95270.0,0.10076779]
[1768686203887,4.723e-05,95274.0,95271.0,0.01049637]
[1768686204499,0.01054327,95274.0,95271.0,0.01049637]
[1768686214454,0.01054327,95274.0,95270.0,0.04828545]
[1768686214675,0.01049615,95273.0,95270.0,0.03778897]
[1768686215537,0.01049615,95273.0,95268.0,0.06297998]
[1768686215538,0.01049813,95255.0,95252.0,0.05668306]
[1768686215750,0.1272,95254.0,95251.0,0.01049857]
[1768686216041,0.1272,95254.0,95248.0,0.0001576]
[1768686216042,0.13769824,95254.0,95248.0,0.0001576]
[1768686216471,0.1272,95254.0,95248.0,0.0001576]
[1768686216897,0.01049846,95252.0,95248.0,0.0001576]
[1768686217117,0.05249356,95250.0,95248.0,0.0001576]
[1768686217554,0.05249398,95249.0,95248.0,0.0001576]
[1768686217993,0.05249398,95249.0,95243.0,0.01072029]
[1768686217994,0.06299519,95246.0,95243.0,0.06458159]
[1768686218225,0.05231071,95244.0,95243.0,0.06458159]
[1768686218424,0.01049912,95246.0,95243.0,0.06458159]
[1768686218600,0.05249663,95245.0,95243.0,0.06458159]
[1768686218987,0.05249674,95244.0,95243.0,0.06458159]
[1768686219391,0.05249674,95244.0,95243.0,0.06464612]
[1768686219571,0.0524963,95245.0,95243.0,0.06464612]
[1768686219774,0.05249674,95244.0,95243.0,0.06464612]
[1768686220404,0.0524963,95245.0,95243.0,0.06464612]
[1768686220405,0.0524962,95245.0,95243.0,0.06464612]
[1768686220606,0.05249674,95244.0,95243.0,0.06464612]
[1768686222537,0.05249674,95244.0,95243.0,0.00028537]
[1768686224728,0.05241817,95244.0,95243.0,0.00028537]
[1768686224908,0.0523396,95244.0,95243.0,0.00028537]
[1768686225573,0.05249674,95244.0,95243.0,0.00028537]
[1768686225775,0.05087512,95244.0,95243.0,0.00028537]
[1768686225957,0.0476168,95244.0,95243.0,0.00028537]
[1768686226159,0.03784184,95244.0,95243.0,0.00028537]
[1768686226367,0.03458352,95244.0,95243.0,0.00028537]
[1768686226567,0.03237567,95244.0,95243.0,0.00028537]
[1768686227450,0.01049912,95246.0,95243.0,0.00028537]
[1768686227798,0.06299516,95246.0,95243.0,0.00028537]
[1768686228416,0.01049912,95246.0,95243.0,0.00028537]
[1768686229459,0.06299486,95246.0,95243.0,0.00028537]
[1768686229814,0.01049912,95246.0,95243.0,0.00028537]
[1768686230455,0.01049912,95246.0,95243.0,0.01078482]
[1768686230634,0.01049912,95246.0,95243.0,0.00028537]
[1768686232055,0.06299356,95248.0,95243.0,0.01078482]
[1768686232260,0.0629945,95247.0,95243.0,0.01078482]
[1768686233315,0.01049912,95246.0,95243.0,0.01078482]
[1768686234501,0.01049901,95247.0,95243.0,0.01078482]
[1768686235059,0.01049901,95247.0,95244.0,0.01049934]
[1768686235453,0.0104989,95248.0,95244.0,0.01049934]
[1768686236407,0.0104989,95248.0,95244.0,0.06299593]
[1768686237874,0.01049879,95249.0,95245.0,0.01049923]
[1768686238071,0.01049868,95250.0,95246.0,0.01049912]
[1768686238239,0.06299214,95250.0,95246.0,0.01049912]
[1768686238991,0.01049879,95249.0,95246.0,0.01049912]
[1768686239376,0.01049868,95250.0,95246.0,0.01049912]
[1768686243877,0.01049868,95250.0,95247.0,0.01049901]
[1768686244278,0.01049857,95251.0,95248.0,0.0104989]
[1768686244615,0.01049857,95251.0,95247.0,0.01049901]
[1768686244964,0.06299154,95251.0,95247.0,0.01049901]
[1768686246196,0.01049868,95250.0,95246.0,0.01049912]
[1768686246377,0.00474728,95250.0,95247.0,0.01049901]
[1768686246851,0.07925285,95254.0,95247.0,0.01049901]
[1768686247081,0.07925285,95254.0,95251.0,0.01049857]
[1768686247265,0.07925285,95254.0,95251.0,0.06299138]
[1768686247513,0.01049802,95256.0,95251.0,0.06299138]
[1768686247727,0.01049802,95256.0,95252.0,0.01049846]
[1768686247864,0.01049802,95256.0,95253.0,0.01049835]
[1768686248925,0.01049791,95257.0,95253.0,0.0629901]
[1768686249162,0.01049791,95257.0,95252.0,0.01049846]
[1768686249571,0.06298751,95257.0,95252.0,0.01049846]
[1768686249949,0.01049791,95257.0,95252.0,0.01049846]
[1768686250354,0.01049791,95257.0,95253.0,0.01049835]
[1768686250558,0.06298765,95257.0,95253.0,0.01049835]
[1768686251552,0.01049802,95256.0,95252.0,0.01049846]
[1768686252982,0.01049813,95255.0,95251.0,0.01049857]
[1768686253394,0.01049813,95255.0,95252.0,0.01049846]
[1768686254889,0.01049802,95256.0,95253.0,0.01049835]
[1768686255087,0.06298624,95259.0,95254.0,0.01049824]
[1768686255288,0.01049769,95259.0,95254.0,0.06298943]
[1768686256342,0.07209615,95259.0,95255.0,0.06298867]
[1768686257346,0.07209615,95259.0,95256.0,0.01049802]
[1768686257795,0.01049791,95257.0,95254.0,0.01049824]
[1768686258006,0.06298778,95257.0,95250.0,0.01049868]
[1768686258842,0.06298778,95257.0,95251.0,0.05249245]
[1768686259269,0.01049802,95256.0,95252.0,0.01049846]
[1768686259385,0.06298824,95256.0,95252.0,0.01049846]
[1768686260275,0.01049802,95256.0,95252.0,0.01049846]
[1768686261183,0.01049791,95257.0,95252.0,0.01049846]
[1768686262325,0.01049791,95257.0,95253.0,0.01049835]
[1768686263871,0.01049791,95257.0,95254.0,0.01049824]
[1768686268834,0.0104978,95258.0,95254.0,0.01049824]
[1768686269385,0.01049791,95257.0,95254.0,0.01049824]
[1768686269780,0.003368,95256.0,95254.0,0.01049824]
[1768686271853,0.01386602,95256.0,95252.0,0.01049846]
[1768686273901,0.01049813,95255.0,95252.0,0.01049846]
[1768686274581,0.01386602,95256.0,95252.0,0.01049846]
[1768686278486,0.01049813,95255.0,95250.0,0.01049868]
[1768686278627,0.06298918,95255.0,95250.0,0.01049868]
[1768686279491,0.01049824,95254.0,95250.0,0.01049868]
[1768686279707,0.05249125,95254.0,95250.0,0.01049868]
[1768686280255,0.01049835,95253.0,95249.0,0.01049879]
[1768686280461,0.01049835,95253.0,95249.0,0.06299269]
[1768686280628,0.0629902,95253.0,95249.0,0.01049879]
[1768686280994,0.01049835,95253.0,95249.0,0.01049879]
[1768686281662,0.01049835,95253.0,95250.0,0.01049868]
[1768686281821,0.003368,95252.0,95250.0,0.01049868]
[1768686284245,0.06635885,95252.0,95247.0,0.01049901]
[1768686284899,0.06635885,95252.0,95247.0,0.06299403]
[1768686285301,0.01049857,95251.0,95247.0,0.01049901]
[1768686286058,0.01049857,95251.0,95247.0,0.06299388]
[1768686286372,0.01386646,95252.0,95248.0,0.0104989]
[1768686287253,0.01386646,95252.0,95249.0,0.01049879]
[1768686287658,0.003368,95252.0,95249.0,0.0629927]
[1768686287868,0.003368,95252.0,95249.0,0.01049879]
[1768686288108,0.003368,95252.0,95249.0,0.06299275]
[1768686289730,0.00106285,95252.0,95249.0,0.06299275]
[1768686290668,0.01156131,95252.0,95248.0,0.05249441]
[1768686290903,0.01156131,95252.0,95249.0,0.01049879]
[1768686292646,0.00106285,95252.0,95249.0,0.06299274]
[1768686293268,0.00106285,95252.0,95249.0,0.01049879]
[1768686293467,0.00106285,95252.0,95249.0,0.06299274]
[1768686295472,0.00106285,95252.0,95249.0,0.01049879]
[1768686295678,0.01156131,95252.0,95249.0,0.01049879]
[1768686295885,0.01156131,95252.0,95248.0,0.0104989]
[1768686296083,0.01156131,95252.0,95249.0,0.01049879]
[1768686296409,0.01049846,95252.0,95249.0,0.01049879]
[1768686297610,0.01049835,95253.0,95249.0,0.06299263]
[1768686298240,0.00106285,95251.0,95249.0,0.06299263]
[1768686298440,0.00106285,95251.0,95249.0,0.01049879]
[1768686301652,0.01049868,95250.0,95246.0,0.01049912]
[1768686301854,0.00106285,95251.0,95248.0,0.0104989]
[1768686305766,0.01049835,95253.0,95249.0,0.01049879]
[1768686306410,0.01049857,95251.0,95247.0,0.01049901]
[1768686307454,0.01049857,95251.0,95248.0,0.0104989]
[1768686307681,0.01049835,95253.0,95249.0,0.01049879]
[1768686308845,0.01049846,95252.0,95248.0,0.0104989]
[1768686309074,0.01049846,95252.0,95249.0,0.01049879]
[1768686309939,0.01049835,95253.0,95249.0,0.01049879]
[1768686310313,0.06299079,95252.0,95248.0,0.0104989]
[1768686310865,0.01049846,95252.0,95248.0,0.0104989]
[1768686311070,0.01049846,95252.0,95248.0,0.06299335]
[1768686312089,0.01049846,95252.0,95249.0,0.01049879]
[1768686312983,0.01049846,95252.0,95248.0,0.0104989]
[1768686313870,0.01049846,95252.0,95249.0,0.01049879]
[1768686314671,0.01049868,95250.0,95245.0,0.01049923]
[1768686314798,0.01049846,95252.0,95246.0,0.01049912]
[1768686315007,0.01049857,95251.0,95247.0,0.06299401]
[1768686315205,0.01049846,95252.0,95248.0,0.0104989]
[1768686317013,0.01049857,95251.0,95248.0,0.0104989]
[1768686317771,0.01049868,95250.0,95247.0,0.01049901]
[1768686318504,0.01049857,95251.0,95248.0,0.0104989]
[1768686318886,0.01049846,95252.0,95248.0,0.0104989]
[1768686319624,0.01049857,95251.0,95247.0,0.01049901]
[1768686319823,0.01049857,95251.0,95248.0,0.0104989]
[1768686324490,0.01049846,95252.0,95248.0,0.0104989]
[1768686324885,0.01049846,95252.0,95249.0,0.01049879]
[1768686326273,0.01049835,95253.0,95249.0,0.01049879]
[1768686328425,0.01049846,95252.0,95248.0,0.0104989]
[1768686329124,0.06299065,95253.0,95248.0,0.0104989]
[1768686329125,0.01049835,95253.0,95249.0,0.01049879]
[1768686329807,0.01049835,95253.0,95250.0,0.01049868]
[1768686332922,0.01049846,95252.0,95248.0,0.0104989]
[1768686334490,0.01049857,95251.0,95248.0,0.0104989]
[1768686334689,0.01049846,95252.0,95248.0,0.0104989]
[1768686336252,0.01049857,95251.0,95248.0,0.0104989]
[1768686336933,0.01049868,95250.0,95247.0,0.01049901]
[1768686337177,0.06299215,95250.0,95246.0,0.01049912]
[1768686337351,0.01049868,95250.0,95246.0,0.06299474]
[1768686337533,0.01049868,95250.0,95247.0,0.01049901]
[1768686338315,0.01049857,95251.0,95247.0,0.06299396]
[1768686338524,0.01049857,95251.0,95248.0,0.0104989]
[1768686338725,0.01049846,95252.0,95248.0,0.06299338]
[1768686339324,0.01049846,95252.0,95248.0,0.0104989]
[1768686340440,0.01049846,95252.0,95249.0,0.01049879]
[1768686342619,0.01049824,95254.0,95250.0,0.01049868]
[1768686343738,0.06298954,95254.0,95250.0,0.01049868]
[1768686345167,0.01049824,95254.0,95250.0,0.01049868]
[1768686345669,0.01049824,95254.0,95251.0,0.01049857]
[1768686347683,0.01049824,95254.0,95248.0,0.0104989]
[1768686347884,0.06298995,95254.0,95248.0,0.0104989]
[1768686348224,0.01049835,95253.0,95250.0,0.01049868]
[1768686349110,0.01049824,95254.0,95251.0,0.01049857]
[1768686349459,0.01049835,95253.0,95249.0,0.01049879]
[1768686349674,0.01049835,95253.0,95250.0,0.01049868]
[1768686349884,0.01049824,95254.0,95250.0,0.01049868]
[1768686350886,0.01049824,95254.0,95250.0,0.06299202]
[1768686352342,0.01049802,95256.0,95252.0,0.01049846]
[1768686352993,0.06298823,95256.0,95252.0,0.01049846]
[1768686353539,0.01049835,95253.0,95249.0,0.01049879]
[1768686354168,0.01049846,95252.0,95249.0,0.01049879]
[1768686354361,0.01049835,95253.0,95249.0,0.01049879]
[1768686354687,0.01049846,95252.0,95249.0,0.01049879]
[1768686355065,0.01049835,95253.0,95249.0,0.06299274]
[1768686355582,0.01049835,95253.0,95250.0,0.01049868]
[1768686355744,0.01049824,95254.0,95249.0,0.01049879]
[1768686356401,0.06298949,95254.0,95249.0,0.01049879]
[1768686356578,0.01049824,95254.0,95249.0,0.06299269]
[1768686357149,0.01049824,95254.0,95250.0,0.01049868]
[1768686357990,0.01049813,95255.0,95251.0,0.01049857]
[1768686360059,0.06298885,95255.0,95251.0,0.01049857]
[1768686360515,0.01049813,95255.0,95251.0,0.01049857]
[1768686360744,0.0104978,95258.0,95253.0,0.05249178]
[1768686361651,0.0104978,95258.0,95255.0,0.01049813]
[1768686363178,0.01049769,95259.0,95255.0,0.01049813]
[1768686364798,0.01049791,95257.0,95254.0,0.01049824]
[1768686366775,0.01049791,95257.0,95253.0,0.01049835]
[1768686367207,0.01049791,95257.0,95254.0,0.01049824]
[1768686367490,0.01049769,95259.0,95254.0,0.01049824]
[1768686367698,0.0104978,95258.0,95254.0,0.01049824]
[1768686369543,0.0104978,95258.0,95255.0,0.01049813]
[1768686370351,0.01049769,95259.0,95255.0,0.01049813]
[1768686370583,0.06298682,95258.0,95254.0,0.01049824]
[1768686370786,0.06289596,95258.0,95254.0,0.01049824]
[1768686371669,0.01049791,95257.0,95253.0,0.01049835]
[1768686371871,0.01040694,95258.0,95254.0,0.01049824]
[1768686372074,0.01049769,95259.0,95255.0,0.01049813]
[1768686372276,0.01049769,95259.0,95254.0,0.06298946]
[1768686372277,0.01049791,95257.0,95253.0,0.01049835]
[1768686372481,0.0104978,95258.0,95254.0,0.01049824]
[1768686372840,0.0104978,95258.0,95255.0,0.01049813]
[1768686373329,0.01049791,95257.0,95253.0,0.01049835]
[1768686374916,0.0104978,95258.0,95254.0,0.01049824]
[1768686375338,0.0104978,95258.0,95255.0,0.01049813]
[1768686376202,0.01049769,95259.0,95255.0,0.01049813]
[1768686376415,0.01049725,95263.0,95259.0,0.01049769]
[1768686376634,0.01049736,95262.0,95259.0,0.01049769]
[1768686377031,0.01049736,95262.0,95257.0,0.0629874]
[1768686377252,0.01049736,95262.0,95258.0,0.0104978]
[1768686377725,0.01049736,95262.0,95259.0,0.01049769]
[1768686377931,0.01049725,95263.0,95260.0,0.01049758]
[1768686379281,0.01049725,95263.0,95259.0,0.01049769]
[1768686380542,0.06298355,95263.0,95259.0,0.01049769]
[1768686381193,0.01049725,95263.0,95259.0,0.01049769]
[1768686381404,0.01049736,95262.0,95259.0,0.01049769]
[1768686384703,0.01049725,95263.0,95259.0,0.01049769]
[1768686385134,0.01049725,95263.0,95260.0,0.01049758]
[1768686385770,0.01049725,95263.0,95259.0,0.01049769]
[1768686385979,0.01049747,95261.0,95256.0,0.06298804]
[1768686386192,0.01049736,95262.0,95258.0,0.0104978]
[1768686386900,0.01049747,95261.0,95258.0,0.0104978]
[1768686387920,0.01049747,95261.0,95257.0,0.01049791]
[1768686388195,0.01049747,95261.0,95257.0,0.06298745]
[1768686388338,0.01049747,95261.0,95257.0,0.01049791]
[1768686388890,0.01049747,95261.0,95257.0,0.06298748]
[1768686389259,0.01049736,95262.0,95258.0,0.0104978]
[1768686389773,0.01049736,95262.0,95259.0,0.01049769]
[1768686390182,0.01049747,95261.0,95257.0,0.01049791]
[1768686390769,0.01049758,95260.0,95256.0,0.01049802]
[1768686391463,0.06298551,95260.0,95256.0,0.01049802]
[1768686391674,0.01049758,95260.0,95256.0,0.01049802]
[1768686392312,0.06298554,95260.0,95256.0,0.01049802]
[1768686392728,0.01049758,95260.0,95256.0,0.01049802]
[1768686392933,0.01049758,95260.0,95254.0,0.01049824]
[1768686392934,0.01049769,95259.0,95254.0,0.01049824]
[1768686393386,0.01049758,95260.0,95256.0,0.01049802]
[1768686395061,0.01049758,95260.0,95256.0,0.06298806]
[1768686395258,0.01049758,95260.0,95257.0,0.01049791]
[1768686395827,0.01049747,95261.0,95258.0,0.0104978]
[1768686396039,0.01049736,95262.0,95258.0,0.06298682]
[1768686396425,0.01049736,95262.0,95258.0,0.0104978]
[1768686397655,0.01049747,95261.0,95258.0,0.0104978]
[1768686398914,0.01049758,95260.0,95256.0,0.01049802]
[1768686399791,0.01049747,95261.0,95257.0,0.01049791]
[1768686400793,0.01049747,95261.0,95258.0,0.0104978]
[1768686408272,0.01049758,95260.0,95255.0,0.01049813]
[1768686408487,0.0104978,95258.0,95254.0,0.01049824]
[1768686410266,0.01049791,95257.0,95254.0,0.01049824]
[1768686413020,0.01049802,95256.0,95253.0,0.01049835]
[1768686413267,0.01049791,95257.0,95253.0,0.01049835]
[1768686413572,0.01049802,95256.0,95253.0,0.01049835]
[1768686413732,0.01049813,95255.0,95251.0,0.06716761]
[1768686414153,0.01049824,95254.0,95251.0,0.06716761]
[1768686414348,0.01049813,95255.0,95251.0,0.06716761]
[1768686414730,0.01049824,95254.0,95251.0,0.05666904]
[1768686415919,0.06298953,95254.0,95251.0,0.05666904]
[1768686416127,0.06299013,95253.0,95249.0,0.21619556]
[1768686417405,0.01049835,95253.0,95249.0,0.21619556]
[1768686418970,0.01049824,95254.0,95250.0,0.01049868]
[1768686420356,0.06299013,95253.0,95249.0,0.21619556]
[1768686420592,0.01049846,95252.0,95249.0,0.12724]
[1768686421403,0.06299026,95253.0,95249.0,0.12724]
[1768686422037,0.01049835,95253.0,95249.0,0.19023273]
[1768686422248,0.01049835,95253.0,95249.0,0.13773879]
[1768686422736,0.01049835,95253.0,95249.0,0.19023273]
[1768686423569,0.01049835,95253.0,95249.0,0.13773879]
[1768686426356,0.01049835,95253.0,95249.0,0.19023274]
[1768686427165,0.01049835,95253.0,95249.0,0.13773879]
[1768686430350,0.01049846,95252.0,95249.0,0.12724]
[1768686430544,0.06299128,95252.0,95249.0,0.12724]
[1768686431158,0.01049846,95252.0,95249.0,0.12724]
[1768686432165,0.06043971,95253.0,95249.0,0.12724]
[1768686432507,0.01049846,95252.0,95249.0,0.12724]
[1768686437499,0.062991,95252.0,95249.0,0.12724]
[1768686440053,0.01049846,95252.0,95249.0,0.13773879]
[1768686442144,0.01049846,95252.0,95249.0,0.12724]
[1768686452107,0.04416615,95253.0,95249.0,0.12724]
[1768686452307,0.01049846,95252.0,95249.0,0.12724]
[1768686454340,0.01049835,95253.0,95249.0,0.12724]
[1768686455013,0.01049835,95253.0,95249.0,0.13773879]
[1768686456823,0.01049835,95253.0,95249.0,0.19023269]
[1768686462067,0.01049835,95253.0,95250.0,0.05666904]
[1768686463960,0.01049824,95254.0,95250.0,0.11966115]
[1768686464594,0.01049813,95255.0,95251.0,0.0629914]
[1768686466379,0.01049813,95255.0,95252.0,0.01049846]
[1768686467861,0.01049802,95256.0,95253.0,0.01049835]
[1768686468065,0.0104978,95258.0,95253.0,0.01049835]
[1768686468862,0.01049791,95257.0,95253.0,0.01049835]
[1768686480528,0.06298755,95257.0,95253.0,0.01049835]
[1768686480739,0.01049802,95256.0,95252.0,0.01049846]
[1768686480941,0.01049813,95255.0,95251.0,0.01049857]
[1768686481195,0.01049824,95254.0,95251.0,0.01049857]
[1768686482232,0.01049813,95255.0,95251.0,0.01049857]
[1768686482570,0.01049813,95255.0,95251.0,0.06716761]
[1768686485102,0.06298888,95255.0,95251.0,0.06716761]
[1768686485893,0.01049824,95254.0,95251.0,0.05666904]
[1768686486081,0.01049824,95254.0,95250.0,0.06716772]
[1768686486263,0.01049824,95254.0,95250.0,0.11966107]
[1768686486478,0.01049824,95254.0,95250.0,0.05666904]
[1768686487866,0.06298948,95254.0,95250.0,0.05666904]
[1768686489326,0.06298948,95254.0,95251.0,0.05666904]
[1768686495159,0.01049824,95254.0,95251.0,0.05666904]
[1768686495733,0.06298953,95254.0,95251.0,0.05666904]
[1768686497560,0.05249205,95253.0,95251.0,0.05666904]
[1768686497980,0.01049824,95254.0,95251.0,0.05666904]
[1768686499260,0.01049824,95254.0,95251.0,0.06716761]
[1768686501274,0.01049813,95255.0,95251.0,0.11966047]
[1768686502204,0.01049813,95255.0,95251.0,0.06716761]
[1768686503444,0.01049813,95255.0,95251.0,0.11966048]
[1768686506543,0.01049813,95255.0,95252.0,0.01049846]
[1768686507763,0.01049802,95256.0,95252.0,0.01049846]
[1768686507764,0.01049802,95256.0,95252.0,0.06299078]
[1768686513951,0.01049813,95255.0,95252.0,0.01049846]
[1768686514154,0.01049802,95256.0,95253.0,0.01049835]
[1768686520340,0.01049791,95257.0,95253.0,0.01049835]
[1768686520550,0.01049791,95257.0,95253.0,0.06299009]
[1768686522191,0.01049758,95260.0,95254.0,0.01049824]
[1768686522419,0.01049758,95260.0,95255.0,0.06298842]
[1768686522698,0.01049769,95259.0,95255.0,0.01049813]
[1768686523056,0.01049747,95261.0,95257.0,0.01049791]
[1768686523401,0.01049747,95261.0,95258.0,0.0104978]
[1768686525289,0.01049857,95262.0,95258.0,0.0104978]
[1768686525498,0.01049857,95262.0,95261.0,0.05248737]
[1768686526473,0.01049648,95270.0,95265.0,0.01049703]
[1768686526605,0.01049648,95270.0,95267.0,0.01049681]
[1768686526806,0.0631353,95272.0,95267.0,0.01049681]
[1768686526807,0.01065386,95272.0,95267.0,0.01049681]
[1768686527014,0.01049637,95271.0,95268.0,0.0104967]
[1768686527234,0.00033257,95268.0,95267.0,0.01049681]
[1768686527389,0.0001576,95272.0,95269.0,0.01049659]
[1768686527593,0.0001576,95272.0,95269.0,0.06297953]
[1768686527789,0.0001576,95272.0,95271.0,0.05248186]
[1768686527998,0.01049538,95280.0,95275.0,0.01049593]
[1768686528256,0.01049538,95280.0,95272.0,0.05248108]
[1768686528257,0.03149207,95276.0,95273.0,0.01049615]
[1768686528594,0.0104956,95278.0,95274.0,0.06297619]
[1768686529034,0.07347002,95278.0,95274.0,0.01049604]
[1768686529301,0.01049571,95277.0,95274.0,0.01049604]
[1768686529611,0.01049582,95276.0,95273.0,0.01049615]
[1768686530039,0.04198716,95277.0,95273.0,0.01049615]
[1768686530265,0.01049571,95277.0,95274.0,0.01049604]
[1768686530435,0.01049571,95277.0,95273.0,0.01049615]
[1768686531009,0.01049571,95277.0,95273.0,0.06297685]
[1768686531434,0.01049571,95277.0,95273.0,0.01049615]
[1768686532196,0.01049637,95276.0,95273.0,0.01049615]
[1768686534021,0.01049637,95276.0,95273.0,0.06297688]
[1768686534718,0.01049637,95276.0,95273.0,0.06297679]
[1768686535676,0.01096811,95278.0,95275.0,0.01049593]
[1768686536053,0.04245899,95278.0,95275.0,0.01049593]
[1768686536276,0.01049582,95276.0,95270.0,0.01049648]
[1768686536467,0.01049582,95276.0,95271.0,0.01049637]
[1768686536837,0.01049582,95276.0,95273.0,0.01049615]
[1768686537058,0.01049593,95275.0,95271.0,0.01049637]
[1768686537263,0.01049582,95276.0,95272.0,0.01049626]
[1768686538044,0.06344621,95278.0,95273.0,0.01049615]
[1768686538244,0.06297437,95277.0,95271.0,0.01049637]
[1768686538449,0.05247966,95276.0,95271.0,0.01049637]
[1768686538659,0.01049582,95276.0,95272.0,0.01049626]
[1768686539844,0.01049582,95276.0,95273.0,0.01049615]
[1768686540049,0.01049571,95277.0,95273.0,0.01049615]
[1768686540418,0.01049571,95277.0,95273.0,0.06297686]
[1768686540615,0.01049571,95277.0,95273.0,0.01049615]
[1768686541345,0.01096811,95278.0,95274.0,0.01049604]
[1768686541574,0.06344617,95278.0,95274.0,0.01049604]
[1768686542004,0.01049571,95277.0,95274.0,0.01049604]
[1768686542766,0.01096811,95278.0,95274.0,0.01049604]
[1768686542973,0.00047251,95278.0,95275.0,0.06297456]
[1768686543184,0.00047251,95278.0,95275.0,0.01049593]
[1768686543409,0.01096811,95278.0,95274.0,0.01049604]
[1768686544316,0.01049582,95276.0,95272.0,0.01049626]
[1768686545415,0.01049593,95275.0,95270.0,0.01049648]
[1768686545622,0.01049571,95277.0,95273.0,0.01049615]
[1768686545833,0.01049571,95277.0,95270.0,0.06297847]
[1768686545834,0.01049582,95276.0,95270.0,0.06297874]
[1768686546043,0.01049582,95276.0,95270.0,0.0629787]
[1768686546256,0.01049593,95275.0,95272.0,0.01049626]
[1768686546794,0.01049582,95276.0,95272.0,0.01049626]
[1768686546989,0.01049593,95275.0,95270.0,0.01049648]
[1768686547433,0.01049593,95275.0,95272.0,0.01049626]
[1768686548130,0.01049582,95276.0,95272.0,0.06297755]
[1768686548331,0.01049582,95276.0,95273.0,0.01049615]
[1768686548534,0.01049571,95277.0,95273.0,0.01049615]
[1768686548742,0.01049571,95277.0,95274.0,0.01049604]
[1768686548897,0.01049538,95280.0,95276.0,0.06297491]
[1768686549101,0.01049549,95279.0,95275.0,0.07241]
[1768686549300,0.06297337,95279.0,95275.0,0.07241]
[1768686549712,0.06297374,95278.0,95275.0,0.07241]
[1768686549922,0.05247856,95277.0,95275.0,0.07241]
[1768686550119,0.05247908,95277.0,95275.0,0.07241]
[1768686552155,0.06297373,95278.0,95275.0,0.07241]
[1768686552378,0.06297373,95278.0,95273.0,0.01049615]
[1768686552379,0.01049571,95277.0,95273.0,0.01049615]
[1768686552599,0.01040494,95276.0,95273.0,0.08290615]
[1768686552956,0.05247956,95276.0,95273.0,0.07241]